Cogmind - Beta 17.1 @@@ ROGUE MODE // 2026.09.05 @ 18:14:31 Player: Zane Result: Self-destructed Performance ------------- Evolutions (3) 1500 Regions Visited (8) 1600 Robots Destroyed (27) 135 Value Destroyed (923) 923 Prototype IDs (31) 620 Alien Tech Used (0) 0 Bonus (300) 300 TOTAL SCORE: 5078 Bonus ------- Aligned with FarCom 300 Cogmind --------- Core Integrity 272/700 Matter 300/300 Energy 100/100 System Corruption 2% Temperature Cool (0) Movement Core (50) Location -7/Lower Caves Parts ------- > --- POWER (1) -------- (None) > --- PROPULSION (4) --- (None) > --- UTILITY (6) ------ Visual Processing Unit Improved Signal Interpreter Advanced Terrain Scan Processor Targeting Computer > --- WEAPON (2) ------- (None) > --- INVENTORY (5) ---- Scrap Suit Improved Heat Sink Particle Charger Insulated Plating Peak State ------------ > --- POWER ------------ Light Nuclear Core > --- PROPULSION ------- Improved Carbon-fiber Leg Aerolev Unit Gravmag System Gravmag System > --- UTILITY ---------- Medium Storage Unit Visual Processing Unit Advanced Terrain Scan Processor Targeting Computer Insulated Plating Component Analysis Suite > --- WEAPON ----------- Plasma Cannon Plasma Cannon > --- INVENTORY -------- Titanium Leg Titanium Leg Scrap Suit Improved Sensor Array Improved Signal Interpreter Improved Terrain Scanner Advanced ECM Suite Medium Reactive Plating Skeleton Box [Rating: 45] Favorites ----------- Power Makeshift Power Source Engine Makeshift Power Source Power Core Light Nuclear Core Propulsion Titanium Leg Treads Armored Treads Leg Titanium Leg Hover Unit Gravmag System Flight Unit VTOL Module Utility Medium Storage Unit Device Improved Terrain Scanner Storage Medium Storage Unit Processor Visual Processing Unit Hackware Hacking Suite Protection Insulated Plating Weapon Plasma Cannon Energy Gun Improved Spread Laser Energy Cannon Plasma Cannon Ballistic Gun Assault Rifle Special Weapon Mining Laser Build | -11 -10 -10 -10 -9 -8 -7 -7 -7 ------- Run | Yrd Mat Min Exi Min Mat Fac Low Low Slots Evolved 6 | . . . . . 4 2 . . Power . | . . . . . . . . . Propulsion 2 | . . . . . 1 1 . . Utility 4 | . . . . . 3 1 . . Weapon . | . . . . . . . . . Parts Attached 50 | 7 1 . . 2 8 28 3 1 Power 6 | 1 . . . 1 . 2 1 1 Engine 5 | 1 . . . 1 . 1 1 1 Core 1 | . . . . . . 1 . . Reactor . | . . . . . . . . . Propulsion 22 | 2 . . . 1 3 15 1 . Treads 1 | . . . . . . 1 . . Leg 10 | 2 . . . 1 . 7 . . Wheel . | . . . . . . . . . Hover 10 | . . . . . 3 7 . . Flight 1 | . . . . . . . 1 . Utility 16 | 2 1 . . . 4 8 1 . Device 6 | 1 . . . . 1 3 1 . Storage 2 | 1 1 . . . . . . . Processor 5 | . . . . . 2 3 . . Hackware 1 | . . . . . 1 . . . Protection 2 | . . . . . . 2 . . Artifact . | . . . . . . . . . Weapon 6 | 2 . . . . 1 3 . . Energy Gun 1 | . . . . . . 1 . . Energy Cannon 2 | . . . . . . 2 . . Ballistic Gun 2 | 2 . . . . . . . . Ballistic Cannon . | . . . . . . . . . Launcher . | . . . . . . . . . Special Weapon 1 | . . . . . 1 . . . Impact Weapon . | . . . . . . . . . Slashing Weapon . | . . . . . . . . . Piercing Weapon . | . . . . . . . . . Special Melee Weapon . | . . . . . . . . . Unidentified Prototypes 1 | . . . . . . 1 . . Parts Lost 22 | . . . . . . 8 4 10 Power 3 | . . . . . . . 1 2 Propulsion 10 | . . . . . . 4 2 4 Utility 6 | . . . . . . 3 . 3 Weapon 3 | . . . . . . 1 1 1 Highest Loss Streak 10 | . . . . . . 3 4 10 To Critical Strikes . | . . . . . . . . . Average Backups 8 | 1 7 10 10 9 8 8 8 8 Power . | . 1 1 1 . . . . . Propulsion 1 | . 2 3 3 2 2 1 . . Utility 5 | . 2 4 3 3 3 5 7 6 Weapon . | . . 2 2 2 1 . . . Tool/Special . | . . . . . . . . . Unused Backups 14 | . . . . 3 1 5 1 4 Power 1 | . . . . . . 1 . . Propulsion 1 | . . . . 1 . . . . Utility 7 | . . . . 1 . 2 1 3 Weapon 3 | . . . . 1 1 1 . . Tool/Special 2 | . . . . . . 1 . 1 Average Slot Usage (%) 95 | . 100 100 100 100 91 98 90 87 Engine 6 | . 14 14 14 14 9 3 5 6 Core 1 | . . . . . . 3 . . Leg 15 | . 28 28 28 28 . 17 6 6 Hover 10 | . . . . . 26 10 16 14 Flight 1 | . . . . . . . 6 5 Device 10 | . 14 14 14 14 14 11 7 5 Storage 8 | . 14 14 14 14 9 7 7 6 Processor 18 | . . . . . 5 22 30 30 Hackware 1 | . . . . . 7 2 . . Energy Gun 1 | . . . . . . 2 . . Energy Cannon 5 | . . . . . . 8 7 6 Ballistic Gun 8 | . 28 28 28 28 17 2 . . Peak Build Rating 45 | 7 8 8 8 10 21 45 44 38 Average Rating 28 | 5 7 8 8 8 17 36 37 36 On Entrance 16 | . 7 8 8 8 10 21 45 38 Avg Prop Armor Cover (%) 11 | . . . . . . 10 14 11 Naked Turns . | . . . . . . . . . Heaviest Build 41 | 13 18 18 18 20 21 35 30 41 Greatest Support 54 | 20 20 20 20 23 19 54 35 17 Greatest Overweight (x) 6 | 2 . . . . 1 3 1 6 Average Overweight (x) . | . . . . . 1 . . . Largest Inventory Capacity 10 | 8 10 10 10 10 10 10 10 10 Average Capacity 9 | 7 9 10 10 10 10 10 10 9 Most Carried 10 | 3 10 10 10 10 10 10 10 10 Average Carried 9 | 1 7 10 9 9 9 9 9 9 Final Capacity 10 | 8 10 10 10 10 10 10 10 5 Final Carried 10 | 3 10 10 10 10 10 10 10 5 Class Distribution -------------------- 51% | Mutant 26% | Scavenger-Skirmisher 9% | Scout 6% | Skirmisher Dominant Class ---------------- Mutant | -10/Materials Mutant | -10/Mines Mutant | -10/Exiles Mutant | -9/Mines Skirmisher | -8/Materials Scavenger-Skirmisher | -7/Factory Mutant | -7/Lower Caves Mutant | -7/Lower Caves Resources | -11 -10 -10 -10 -9 -8 -7 -7 -7 ----------- Run | Yrd Mat Min Exi Min Mat Fac Low Low Matter Collected 1026 | 220 195 8 . 16 32 290 239 26 Remotely . | . . . . . . . . . Salvage Created 1000 | 38 142 . . . 32 436 275 77 Parts 48 | 5 5 . . . 3 18 12 5 Haulers Intercepted 2 | . 1 . . . . 1 . . Recyclers Shooed 3 | 1 2 . . . . . . . Parts Field Recycled . | . . . . . . . . . Retrieved Matter . | . . . . . . . . . Parts Self-Destructed 18 | . . . . . . . 13 5 Prevented . | . . . . . . . . . Parts Restored . | . . . . . . . . . Kills | -11 -10 -10 -10 -9 -8 -7 -7 -7 ------- Run | Yrd Mat Min Exi Min Mat Fac Low Low Combat Hostiles Destroyed 19 | . 2 . . . . 7 7 3 Guns 4 | . 2 . . . . 2 . . Cannons 15 | . . . . . . 5 7 3 Classes Destroyed 9 | 1 2 . . . 1 3 2 . Tunneler 2 | 2 . . . . . . . . Hauler 2 | . 1 . . . . 1 . . Operator 1 | . . . . . . 1 . . Watcher 3 | . . . . . 1 2 . . Swarmer 7 | . . . . . . . 4 3 Grunt 6 | . 2 . . . . 2 2 . Brawler 1 | . . . . . . . 1 . Sentry 2 | . . . . . . 2 . . Programmer 3 | . . . . . . 3 . . Best Kill Streak 3 | 2 2 . . . 1 2 3 3 Combat Bots Only 3 | . 2 . . . . 2 3 3 Max Kills in Single Turn 1 | 1 1 . . . 1 1 1 1 Gunslinging . | . . . . . . . . . Exploded . | . . . . . . . . . Melee . | . . . . . . . . . Uniques/NPCs Destroyed . | . . . . . . . . . Combat | -11 -10 -10 -10 -9 -8 -7 -7 -7 -------- Run | Yrd Mat Min Exi Min Mat Fac Low Low Hostile Shots Fired 205 | . 20 . . . . 78 50 57 Missed 56 | . 8 . . . . 27 11 10 Hits 149 | . 12 . . . . 51 39 47 Projectile 149 | . 12 . . . . 51 39 47 AOE 2 | . . . . . . 2 . . Critical Strikes 1 | . . . . . . . . 1 Damage Taken 2481 | . 149 . . . . 1129 604 599 Core 456 | . 28 . . . . 148 165 115 Absorbed by Shields . | . . . . . . . . . Ignored by Resistances 141 | . . . . . . 10 . 131 Core Remaining (%) 96 | 100 . . . 88 100 . . . Volleys Fired 93 | 5 20 . . 1 6 30 25 6 Largest 2 | 2 2 . . 2 2 2 1 1 Hottest 160 | 40 40 . . 40 100 160 80 80 Shots Fired 152 | 10 40 . . 2 11 57 26 6 Gun 85 | 10 40 . . 2 10 23 . . Cannon 66 | . . . . . . 34 26 6 Launcher . | . . . . . . . . . Special 1 | . . . . . 1 . . . Kinetic 73 | 10 40 . . 2 10 11 . . Thermal 79 | . . . . . 1 46 26 6 Explosive . | . . . . . . . . . Electromagnetic . | . . . . . . . . . Robot Hit Streak 8 | 6 7 . . 1 4 8 7 8 Robot Miss Streak 6 | 1 4 . . 1 3 6 2 1 Penetration Max . | . . . . . . . . . Secondary Targets 1 | . 1 . . . . . . . Max Gunslinging Chain 1 | . 1 . . . . . . . Shots Hit Robots 102 | 7 27 . . 1 6 37 19 5 Core Hits 57 | 3 9 . . . 2 30 10 3 Critical Kills . | . . . . . . . . . Critical Parts Destroyed 1 | 1 . . . . . . . . Critical Strikes 1 | 1 . . . . . . . . Destroy 1 | 1 . . . . . . . . Melee Attacks . | . . . . . . . . . Impact . | . . . . . . . . . Slashing . | . . . . . . . . . Piercing . | . . . . . . . . . Sneak Attacks . | . . . . . . . . . Combat Hostiles . | . . . . . . . . . Follow-up Attacks . | . . . . . . . . . Damage Inflicted 2062 | 81 341 . . 27 76 929 478 130 Guns 849 | 81 336 . . 13 76 343 . . Cannons 1194 | . . . . . . 586 478 130 Explosions . | . . . . . . . . . Melee . | . . . . . . . . . Ramming 19 | . 5 . . 14 . . . . Kinetic 605 | 81 336 . . 13 76 99 . . Thermal 1438 | . . . . . . 830 478 130 Explosive . | . . . . . . . . . Electromagnetic . | . . . . . . . . . Impact . | . . . . . . . . . Slashing . | . . . . . . . . . Piercing . | . . . . . . . . . Highest Corruption 2 | . . . . . . 2 2 2 Average Corruption 1 | . . . . . . 1 2 2 Corruption Purged . | . . . . . . . . . Corruption Blocked . | . . . . . . . . . Effects 44 | . . . . . . 19 19 6 Message Errors 7 | . . . . . . 2 4 1 Matter Fused 13 | . . . . . . 5 5 3 Heat Flow Errors 8 | . . . . . . 3 4 1 Energy Discharges 6 | . . . . . . 2 3 1 Data Loss (minor) 3 | . . . . . . 2 1 . Data Loss (major) 1 | . . . . . . . 1 . Misfires 4 | . . . . . . 3 1 . Alerts 2 | . . . . . . 2 . . Overload Shots . | . . . . . . . . . Overflow Damage 18 | . . . . . . 16 2 . Projectiles 18 | . . . . . . 16 2 . Explosions . | . . . . . . . . . Melee . | . . . . . . . . . Knockbacks . | . . . . . . . . . Impact . | . . . . . . . . . Kinetic . | . . . . . . . . . Secondary . | . . . . . . . . . Self-Inflicted Damage . | . . . . . . . . . Shots . | . . . . . . . . . Rammed . | . . . . . . . . . Targets Rammed 4 | . 2 . . 2 . . . . Kicked 4 | . 2 . . 2 . . . . Crushed . | . . . . . . . . . Highest Temperature 387 | . 8 . . . 8 379 387 209 Average Temperature 99 | . 3 . . . 5 87 121 94 Received Heat Transfer 576 | . 84 . . . . 195 108 189 Effects 9 | . . . . . . 6 3 . Energy Bleed 2 | . . . . . . 1 1 . Interference 6 | . . . . . . 4 2 . Damage (minor) 1 | . . . . . . 1 . . Siege Activations . | . . . . . . . . . Martial Activations . | . . . . . . . . . Shielding Activations . | . . . . . . . . . Robots Disrupted . | . . . . . . . . . Combat Hostiles . | . . . . . . . . . Robots Corrupted . | . . . . . . . . . Combat Hostiles . | . . . . . . . . . Parts Fried . | . . . . . . . . . Impact Corruptions . | . . . . . . . . . Robots Melted . | . . . . . . . . . Combat Hostiles . | . . . . . . . . . Parts Melted 8 | . . . . . . 5 2 1 Heat Transferred 2360 | . . . . . . 1160 950 250 Parts Sabotaged . | . . . . . . . . . Parts Stolen . | . . . . . . . . . Parts Stripped . | . . . . . . . . . Power Chain Reactions . | . . . . . . . . . Alert | -11 -10 -10 -10 -9 -8 -7 -7 -7 ------- Run | Yrd Mat Min Exi Min Mat Fac Low Low Maximum Alert Level . | . . . . . . . . . Low Security (%) 100 | 100 100 100 . 100 100 100 . . Level 1 . | . . . . . . . . . Level 2 . | . . . . . . . . . Level 3 . | . . . . . . . . . Level 4 . | . . . . . . . . . Level 5 . | . . . . . . . . . High Security . | . . . . . . . . . Max Security . | . . . . . . . . . Peak Influence 77 | 5 42 9 . . 15 77 . . Initial 9 | . 3 9 . . . . . . Average 11 | 1 7 2 . . . 17 . . Influence Increases 799 | 10 127 . . . 26 331 190 115 Destroy 0b10 Robot/C 380 | . 40 . . . . 140 140 60 Destroy 0b10 Robot/NC 40 | 10 5 . . . 5 20 . . Destroy Leader 100 | . 12 . . . 2 56 20 10 Successful Hack 103 | . 40 . . . 4 59 . . Disable Machine 30 | . . . . . 15 15 . . Destroy Structure 11 | . . . . . . 11 . . Lose Combat Pursuer 135 | . 30 . . . . 30 30 45 Influence Decreases 774 | 5 106 26 . . 26 271 208 132 Entered New Map 51 | . 2 17 . . . . 23 9 Time Decay 592 | 5 104 9 . . 26 230 165 53 Lost Part 131 | . . . . . . 41 20 70 Squads Dispatched 6 | . . . . . 1 5 . . Investigation . | . . . . . . . . . Extermination 3 | . . . . . . 3 . . Reinforcement 2 | . . . . . 1 1 . . Assault . | . . . . . . . . . Garrison 1 | . . . . . . 1 . . Intercept . | . . . . . . . . . Searches Triggered . | . . . . . . . . . Construction Impeded 1 | . . . . . . 1 . . Haulers Reinforced . | . . . . . . . . . Active Scanning Responses . | . . . . . . . . . Cargo Convoy Interrupts . | . . . . . . . . . Stealth | -11 -10 -10 -10 -9 -8 -7 -7 -7 --------- Run | Yrd Mat Min Exi Min Mat Fac Low Low Distress Signals 1 | . . . . . . 1 . . Communications Jammed . | . . . . . . . . . Distress Signals . | . . . . . . . . . Times Spotted 42 | . 4 . . . 7 13 9 9 Peak Tracking Total 4 | . 2 . . . 3 3 4 4 Tactical Retreats 5 | . 1 . . . . 2 1 1 Traps | -11 -10 -10 -10 -9 -8 -7 -7 -7 ------- Run | Yrd Mat Min Exi Min Mat Fac Low Low Traps Triggered 2 | . . . . . . 2 . . Indirectly . | . . . . . . . . . Trap Hack Attempts . | . . . . . . . . . Triggered . | . . . . . . . . . Disarmed . | . . . . . . . . . Reprogrammed . | . . . . . . . . . Reused . | . . . . . . . . . Traps Extracted . | . . . . . . . . . Installed . | . . . . . . . . . Triggered . | . . . . . . . . . Machines | -11 -10 -10 -10 -9 -8 -7 -7 -7 ---------- Run | Yrd Mat Min Exi Min Mat Fac Low Low Machines Disabled 2 | . . . . . 1 1 . . Max in Single Turn 1 | . . . . . 1 1 . . Garrison Access 1 | . . . . . 1 . . . Machines Repaired . | . . . . . . . . . Machines Dismantled . | . . . . . . . . . Machines Sabotaged . | . . . . . . . . . Overloaded Fab Kills . | . . . . . . . . . Hacking | -11 -10 -10 -10 -9 -8 -7 -7 -7 --------- Run | Yrd Mat Min Exi Min Mat Fac Low Low Machines Accessed 18 | . 6 . 1 . 3 8 . . Terminals 13 | . 6 . . . 2 5 . . Fabricators . | . . . . . . . . . Repair Stations 1 | . . . . . . 1 . . Recycling Units . | . . . . . . . . . Scanalyzers 2 | . . . . . . 2 . . Garrison Access 1 | . . . . . 1 . . . Total Hacks 54 | . 21 . 1 . 11 21 . . Successful 28 | . 14 . 1 . 4 9 . . Failed 26 | . 7 . . . 7 12 . . Catastrophic 2 | . . . . . . 2 . . Database Lockouts . | . . . . . . . . . Manual 43 | . 20 . 1 . 9 13 . . Terminals 45 | . 21 . . . 9 15 . . Fabricators . | . . . . . . . . . Repair Stations 2 | . . . . . . 2 . . Recycling Units . | . . . . . . . . . Scanalyzers 4 | . . . . . . 4 . . Garrison Access 2 | . . . . . 2 . . . Terminal Hacks 12 | . 8 . 1 . 1 2 . . Robot Analysis 6 | . 4 . . . 1 1 . . Prototype ID Bank 3 | . 2 . . . . 1 . . Branch Access Points 1 | . 1 . . . . . . . Emergency Access Points 1 | . 1 . . . . . . . Proto ID Catalog 1 | . . . 1 . . . . . Fabricator Hacks . | . . . . . . . . . Repair Station Hacks 1 | . . . . . . 1 . . Scan Component 1 | . . . . . . 1 . . Recycling Unit Hacks . | . . . . . . . . . Scanalyzer 3 | . . . . . . 3 . . Retrieve Study 3 | . . . . . . 3 . . Garrison Access Hacks 1 | . . . . . 1 . . . Seal Access 1 | . . . . . 1 . . . Unauthorized Hacks 11 | . 6 . . . 2 3 . . Terminals 11 | . 6 . . . 2 3 . . Assimilate 1 | . . . . . . 1 . . Botnet 10 | . 6 . . . 2 2 . . Fabricators . | . . . . . . . . . Repair Stations . | . . . . . . . . . Recycling Units . | . . . . . . . . . Scanalyzers . | . . . . . . . . . Garrison Access . | . . . . . . . . . Data Cores Recovered . | . . . . . . . . . Used . | . . . . . . . . . Hacking Detections 15 | . 6 . . . 2 7 . . Full Trace Events . | . . . . . . . . . Feedback Events . | . . . . . . . . . Feedback Blocked . | . . . . . . . . . Robot Schematics Acquired . | . . . . . . . . . Robots Built . | . . . . . . . . . Authchips . | . . . . . . . . . Time . | . . . . . . . . . Total Robot Build Rating . | . . . . . . . . . Part Schematics Acquired . | . . . . . . . . . Parts Built . | . . . . . . . . . Authchips . | . . . . . . . . . Time . | . . . . . . . . . Total Part Build Rating . | . . . . . . . . . Part Studies Acquired 3 | . . . . . . 3 . . Parts Repaired . | . . . . . . . . . Time . | . . . . . . . . . Parts Recycled . | . . . . . . . . . Recycled Matter . | . . . . . . . . . Retrieved Matter . | . . . . . . . . . Retrieved Components . | . . . . . . . . . Parts Scanalyzed . | . . . . . . . . . Part Schematics Acquired . | . . . . . . . . . Parts Damaged . | . . . . . . . . . Bothacking | -11 -10 -10 -10 -9 -8 -7 -7 -7 ------------ Run | Yrd Mat Min Exi Min Mat Fac Low Low Used RIF Installer . | . . . . . . . . . Robots Hacked . | . . . . . . . . . Non-combat . | . . . . . . . . . Combat . | . . . . . . . . . Robot Hacks Applied . | . . . . . . . . . Relay Couplers Released . | . . . . . . . . . Fabnet Peak Effective % . | . . . . . . . . . Robots Rewired . | . . . . . . . . . Allies Hacked . | . . . . . . . . . Hacks Repelled . | . . . . . . . . . Allies | -11 -10 -10 -10 -9 -8 -7 -7 -7 -------- Run | Yrd Mat Min Exi Min Mat Fac Low Low Total Allies . | . . . . . . . . . Largest Group . | . . . . . . . . . Highest-Rated Group . | . . . . . . . . . Highest-Rated Ally . | . . . . . . . . . Total Orders . | . . . . . . . . . Ally Attacks . | . . . . . . . . . Total Damage . | . . . . . . . . . Kills . | . . . . . . . . . Allies Corrupted . | . . . . . . . . . Allies Melted . | . . . . . . . . . Intel | -11 -10 -10 -10 -9 -8 -7 -7 -7 ------- Run | Yrd Mat Min Exi Min Mat Fac Low Low Active Infowar (turns) 5062 | 2 475 65 259 330 293 2099 1200 339 Optics 3691 | . . . . . 105 2099 1148 339 Sensors 1479 | . . . . . . . 1200 279 Terrain 2020 | . . . . . 289 1731 . . Seismic 1337 | 2 475 65 259 330 206 . . . Robot Analysis Total 6 | . 4 . . . 1 1 . . Derelict Logs Recovered 2 | . . . . 1 . . 1 . Drone Launches . | . . . . . . . . . Drone Recoveries . | . . . . . . . . . Exploration | -11 -10 -10 -10 -9 -8 -7 -7 -7 ------------- Run | Yrd Mat Min Exi Min Mat Fac Low Low Turns Passed 5137 | 77 475 65 259 330 293 2099 1200 339 Spaces Moved 2976 | 42 260 50 215 262 202 1265 520 160 Core 26 | 5 . . . . . . . 21 Treads 5 | . . . . . . 5 . . Legs 1863 | 37 260 50 215 262 . 758 277 4 Wheels . | . . . . . . . . . Hover 1082 | . . . . . 202 502 243 135 Flight . | . . . . . . . . . Fastest Speed 45 | 50 120 120 120 120 112 45 45 50 Average Speed 114 | 116 120 120 120 120 112 100 141 115 Slowest Speed 350 | 150 120 120 120 120 112 250 200 350 Overloaded Moves . | . . . . . . . . . Propulsion Burnouts . | . . . . . . . . . Robots Hopped . | . . . . . . . . . Potential Cave-ins . | . . . . . . . . . Cave-ins Triggered . | . . . . . . . . . Exploration Rate (%) 35 | 3 40 10 60 70 22 42 56 18 Regions Visited 8 Branch Regions 5 Pre-discovered Areas . | . . . . . . . . . Known Exits Taken 3 | . 1 . . . . 1 1 . Unknown Exits Taken 5 | 1 . 1 1 1 1 . . . Scrap Searched 5 | . . . . 3 . . 2 . Spaces Dug 4 | . . . . . . 4 . . Terrain Destroyed 9 | . . . . . . 9 . . Melee . | . . . . . . . . . Projectile 9 | . . . . . . 9 . . AOE . | . . . . . . . . . Terrain Rammed . | . . . . . . . . . Walls Destroyed . | . . . . . . . . . Machines Disabled . | . . . . . . . . . Actions | -11 -10 -10 -10 -9 -8 -7 -7 -7 --------- Run | Yrd Mat Min Exi Min Mat Fac Low Low Total 4543 | 56 382 55 216 277 253 2040 956 308 Wait 1340 | . 94 6 . 1 27 667 405 140 Move 2968 | 41 259 49 214 261 201 1264 519 160 Hop . | . . . . . . . . . Pick Up 36 | 3 6 . 1 4 5 15 2 . Fast Attach 22 | 7 . . . . 3 10 2 . Attach 9 | . . . . . 2 4 1 2 Detach . | . . . . . . . . . Swap 26 | . 1 . . 2 5 17 1 . Drop 32 | . . . 1 6 4 20 1 . Fire 93 | 5 20 . . 1 6 30 25 6 Melee . | . . . . . . . . . Ram . | . . . . . . . . . Kick 4 | . 2 . . 2 . . . . Crush . | . . . . . . . . . Escape Stasis 13 | . . . . . . 13 . . Rewire . | . . . . . . . . . Trap . | . . . . . . . . . Miscellaneous . | . . . . . . . . . Route ------- -11/Scrapyard -10/Materials (discovered 3 exits: [*Mat] / *Min x2) -10/Mines -10/Exiles (discovered 2 exits: [*Min x2]) -9/Mines -8/Materials -7/Factory -7/Lower Caves -7/Lower Caves History --------- Turn | Location | Event 7 | -11/Scrapyard | Discovered new exit (range 15) 78 | -11/Scrapyard | Entered Materials 192 | -10/Materials | Identified exit to Mines 277 | -10/Materials | Discovered new exit (range 16) 315 | -10/Materials | Build established: Mutant 553 | -10/Materials | Entered Mines 560 | -10/Mines | YI-UF0 nonchalantly dropped a Grenade Launcher on the ground 613 | -10/Mines | Deemed a non-threat by the Exiles lab entrance 613 | -10/Mines | Discovered new exit (range 5) 618 | -10/Mines | Entered Exiles 638 | -10/Exiles | Discovered new exit (range 15) 651 | -10/Exiles | Met 8R-AWN 669 | -10/Exiles | Met EX-HEX 701 | -10/Exiles | Met EX-BIN 718 | -10/Exiles | Aligned with FarCom system 719 | -10/Exiles | Given EX-Vault access code 748 | -10/Exiles | Opened EX-Vault 756 | -10/Exiles | Found Skeleton Box 780 | -10/Exiles | Warned to stay clear of 0b10 Research branches 819 | -10/Exiles | Met EX-DEC 860 | -10/Exiles | Discovered new exit (range 14) 877 | -10/Exiles | Left Exiles lab with Skeleton Box 877 | -10/Exiles | Entered Mines 1008 | -9/Mines | Found a Scrap Suit stashed away for nefarious purposes 1015 | -9/Mines | Found Scrap Suit 1084 | -9/Mines | Found DCF Scrap (15 items) 1098 | -9/Mines | Found a hidden stash of uninstalled traps 1198 | -9/Mines | Discovered new exit (range 8) 1207 | -9/Mines | Entered Materials 1207 | -8/Materials | Evolved 4 slots: Propulsion x1, Utility x3 1438 | -8/Materials | Discovered new exit (range 10) 1495 | -8/Materials | Build established: Skirmisher 1500 | -8/Materials | Entered Factory 1500 | -7/Factory | Evolved 2 slots: Propulsion x1, Utility x1 1802 | -7/Factory | Build established: Scout 2063 | -7/Factory | Lost 3 parts (3n) 2295 | -7/Factory | Lost 3 parts (1n1u1w) 2603 | -7/Factory | Build established: Scavenger-Skirmisher 3072 | -7/Factory | Garrison activated, responded to threat 3446 | -7/Factory | Discovered new exit (range 17) 3598 | -7/Factory | Identified exit to Lower Caves 3599 | -7/Factory | Entered Lower Caves 3609 | -7/Lower Caves | Learned Factory stockpile data 3746 | -7/Lower Caves | Lost 4 parts (1p2n1w) 4031 | -7/Lower Caves | Build established: Mutant 4775 | -7/Lower Caves | Discovered new exit (range 3) 4798 | -7/Lower Caves | Identified exit to Lower Caves 4799 | -7/Lower Caves | Entered another Lower Caves area 5113 | -7/Lower Caves | Core integrity fell below 50% 5138 | -7/Lower Caves | Self-destructed Last Messages --------------- 05079_ VTOL Module destroyed. 05080_ System corrupted: Energy discharge (-33). 05088_ S-27 Virus destroyed. 05095_ Lgt. Nuclear Core fries itself beyond repair. 05098_ VTOL Module melted. 05098_ S-27 Virus destroyed. 05099_ Autogun fries itself beyond repair. 05102_ Acquired 26 matter. 05103_ Plasma Cannon+ destroyed. 05104_ VTOL Module fries itself beyond repair. 05105_ Autogun fries itself beyond repair. 05105_ Critical hit (Burn: +37). 05111_ Aerolev Unit destroyed. 05114_ Gravmag System destroyed. 05123_ Titanium Leg destroyed. 05124_ System corrupted: Heat flow error (+229). 05124_ Mak. Power Source destroyed. 05124_ Med. Storage Unit destroyed. 05127_ Med. Reactive Plating destroyed. Map ----- +----------------------------------------------------+ | ?????????????????????????????????????????????????? | | ?????????????????????????????????????????????????? | | ?????????????????????????????????????????????????? | | ?????????????????????????????????????????????????? | | ?????????????????????????????????????????????????? | | ?????????????????????????????????#???????????????? | | ????????????????????????#?#?????? ???????????????? | | ???????????????????????? # ??#### ? ????????????? | | ????????????????????????? ??? """ """??##?????? | | ????????????????????????? #??# """ """ ??????? | | ????????????????????????? ### """ """ ?????? # | | ?????????????????????????# " " #?????? | | ?????????????????????????# #?# """"" #?????? | | ?????????????????????????# #?# """"" #?????? | | ?????????????????????????# #?# """ ??????? | | ?????????????????????????# ### ? ###???# | | ?????????????????????????# ## #?## #### | | ?????????????????????????# ### | | ????????????????????###??# | | ???????????????????## ### s % | | ???????????????????# ###### | | ???????????????????# #???# | | ???????????????????# ## ## ## | | ???????????????????## ####### ## | | ???????????????????## ! #?????# ### | | ???????????????????# *% @ #?????## #?# !! | | ??????????????????# ### #?????# ### ! | | ??????????????# ???## #???? ### | | ?????????????# ?????# #??#####??# | | ?????????????# ??????## #????????## | | ?????????????## ##?????????# #???????## | | ??????????????#????????????# ##??????## | | ????????????????????????????# ##??????## | | ????????????????????????????? #???????# # | | ????????????????????????????? ##???????## ## | | ????????????????????????????? ##?????????# %## | | ????????????????????????????? #??????????# % | | ????????????????????????????? ??????????# | | ????????????????????????????? ??????????# | | ?????????????????????????????# ??????????# ^ ## | | ?????????????????????????????????????????# ####? | | ?????????????????????????????????????????## #????? | | ??????????????????????????????????????????##?????? | | ?????????????????????????????????????????????????? | | ?????????????????????????????????????????????????? | | ?????????????????????????????????????????????????? | | ?????????????????????????????????????????????????? | | ?????????????????????????????????????????????????? | | ?????????????????????????????????????????????????? | | ?????????????????????????????????????????????????? | +----------------------------------------------------+ Best States ------------- Heat Dissipation 61 Energy Generation 15 Energy Capacity 265 Matter Stores 300 Matter Capacity 300 Sight Range 18 Robot Scan Range 15 Terrain Scan Range 16 Terrain Scan Density 210 Armor Coverage 225 Resistance: KI 30 Resistance: EM 15 Evasion (%) 56 Targeting Accuracy 5 Recoil Reduction 1 Particle Charging 15 Offensive Hacking 10 Item Schematics ----------------- None Robot Schematics ------------------ None Fabricated ------------ Nothing Repaired ---------- Nothing Studied --------- Plasma Cannon | -7/Factory | Hacked Aluminum Leg | -7/Factory | Hacked Imp. Ion Engine | -7/Factory | Hacked Alien Tech Used ----------------- None Achievements -------------- None Challenges ------------ None Game ------ Seed MiningHypervelocityLeg Manual? 0 Play Time 01:03:52 Cumulative 74.4 hours Start 2026.09.05 @ 16:46:06 End 2026.09.05 @ 18:14:31 Sessions 1 Manual Loads 0 Difficulty Rogue Special Mode None Game No. 83 Rogue 83 Adventurer 0 Explorer 0 Win Type - Total 0 Types 0/0/0/0/0/0/0/0/0/0 Lore% 57 Gallery% 44 Achievement% 33 Wizard Run 0 Options --------- Layout 1 ASCII 0 Keyboard 0 Movement Numpad Keybinds 0 Fullscreen 1 Font 24/Smallcaps Map View 50x35 Zoom Use 0% Tactical HUD 1 Map Filters NONE Filters NONE Steam 1 RUN: 4864d571-00ee-4277-b43b-da440dd67c8f